[Event "Elitserien 2019/2020, round 7-9"]
[Site "Elite stadshotellet, Kungsgatan 6, Vaxjo, Sweden"]
[Date "2020.10.16"]
[Round "1.1"]
[White "Grigorov, Grigor"]
[Black "Socko, Bartosz"]
[Result "1/2-1/2"]
[TimeControl "90 minutes for 40 moves + 30 minutes for the rest of the game + 30 seconds per move from move one."]
[WhiteTitle "GM"]
[BlackTitle "GM"]
[WhiteFideId "2907313"]
[BlackFideId "1107038"]
[WhiteElo "2507"]
[BlackElo "2619"]

1. d4 {[%clk 01:30:56]} {[%emt 00:00:04]} Nf6 {[%clk 01:30:54]} {[%emt
00:00:06]} 2. c4 {[%clk 01:31:13]} {[%emt 00:00:12]} e6 {[%clk 01:31:20]}
{[%emt 00:00:05]} 3. Nf3 {[%clk 01:31:36]} {[%emt 00:00:07]} b6 {[%clk
01:31:46]} {[%emt 00:00:04]} 4. g3 {[%clk 01:31:55]} {[%emt 00:00:10]} Bb7
{[%clk 01:32:12]} {[%emt 00:00:04]} 5. Bg2 {[%clk 01:32:17]} {[%emt 00:00:08]}
Be7 {[%clk 01:32:36]} {[%emt 00:00:07]} 6. O-O {[%clk 01:32:38]} {[%emt
00:00:09]} O-O {[%clk 01:33:01]} {[%emt 00:00:04]} 7. Nc3 {[%clk 01:32:41]}
{[%emt 00:00:27]} Ne4 {[%clk 01:33:17]} {[%emt 00:00:15]} 8. Bd2 {[%clk
01:32:30]} {[%emt 00:00:40]} f5 {[%clk 01:33:38]} {[%emt 00:00:10]} 9. Ne5
{[%clk 01:31:26]} {[%emt 00:01:33]} Nxc3 {[%clk 01:29:52]} {[%emt 00:04:16]} 10.
Bxc3 {[%clk 01:30:23]} {[%emt 00:01:32]} Bxg2 {[%clk 01:30:16]} {[%emt
00:00:07]} 11. Kxg2 {[%clk 01:30:44]} {[%emt 00:00:10]} Bf6 {[%clk 01:29:58]}
{[%emt 00:00:48]} 12. Qd3 {[%clk 01:28:40]} {[%emt 00:02:34]} d5 {[%clk
01:23:33]} {[%emt 00:06:54]} 13. cxd5 {[%clk 01:25:14]} {[%emt 00:03:56]} Qxd5+
{[%clk 01:23:22]} {[%emt 00:00:42]} 14. Qf3 {[%clk 01:23:57]} {[%emt 00:01:45]}
Bxe5 {[%clk 01:22:36]} {[%emt 00:01:17]} 15. dxe5 {[%clk 01:20:09]} {[%emt
00:04:18]} Rd8 {[%clk 01:18:28]} {[%emt 00:04:38]} 16. Rfd1 {[%clk 01:18:57]}
{[%emt 00:01:41]} Qxf3+ {[%clk 01:18:51]} {[%emt 00:00:07]} 17. Kxf3 {[%clk
01:19:15]} {[%emt 00:00:12]} Nc6 {[%clk 01:18:54]} {[%emt 00:00:27]} 18. e4
{[%clk 01:18:28]} {[%emt 00:01:17]} g6 {[%clk 01:18:59]} {[%emt 00:00:25]} 19.
Ke3 {[%clk 01:13:02]} {[%emt 00:05:55]} Kf7 {[%clk 01:18:15]} {[%emt 00:01:15]}
20. Rac1 {[%clk 01:09:42]} {[%emt 00:03:50]} Rxd1 {[%clk 01:15:51]} {[%emt
00:02:54]} 21. Rxd1 {[%clk 01:10:04]} {[%emt 00:00:08]} Rd8 {[%clk 01:16:15]}
{[%emt 00:00:05]} 22. Rc1 {[%clk 01:05:42]} {[%emt 00:04:52]} Ne7 {[%clk
01:14:17]} {[%emt 00:02:28]} 23. Be1 {[%clk 01:03:19]} {[%emt 00:02:53]} Rd7
{[%clk 01:11:09]} {[%emt 00:03:39]} 24. b4 {[%clk 01:00:08]} {[%emt 00:03:41]}
a6 {[%clk 01:07:34]} {[%emt 00:04:05]} 25. f4 {[%clk 00:57:25]} {[%emt
00:03:12]} Ke8 {[%clk 01:05:33]} {[%emt 00:02:31]} 26. h3 {[%clk 00:54:48]}
{[%emt 00:03:06]} fxe4 {[%clk 01:02:09]} {[%emt 00:03:55]} 27. Kxe4 {[%clk
00:52:19]} {[%emt 00:02:58]} Nf5 {[%clk 00:59:17]} {[%emt 00:03:23]} 28. g4
{[%clk 00:48:07]} {[%emt 00:04:41]} Rd4+ {[%clk 00:59:42]} {[%emt 00:00:05]} 29.
Kf3 {[%clk 00:48:28]} {[%emt 00:00:10]} Ne7 {[%clk 01:00:09]} {[%emt 00:00:03]}
30. Ke3 {[%clk 00:48:07]} {[%emt 00:00:51]} c5 {[%clk 01:00:29]} {[%emt
00:00:10]} 31. bxc5 {[%clk 00:47:59]} {[%emt 00:00:39]} bxc5 {[%clk 01:00:42]}
{[%emt 00:00:16]} 32. Rxc5 {[%clk 00:47:56]} {[%emt 00:00:33]} Ra4 {[%clk
01:01:06]} {[%emt 00:00:06]} 33. Ra5 {[%clk 00:43:26]} {[%emt 00:04:59]} Nd5+
{[%clk 01:01:11]} {[%emt 00:00:25]} 34. Kf3 {[%clk 00:42:57]} {[%emt 00:00:59]}
Rxf4+ {[%clk 01:01:23]} {[%emt 00:00:18]} 35. Kg3 {[%clk 00:42:46]} {[%emt
00:00:40]} Re4 {[%clk 00:48:10]} {[%emt 00:13:43]} 1/2-1/2

[Event "Elitserien 2019/2020, round 7-9"]
[Site "Elite stadshotellet, Kungsgatan 6, Vaxjo, Sweden"]
[Date "2020.10.16"]
[Round "1.2"]
[White "Blomqvist, Erik"]
[Black "Cramling, Pia"]
[Result "1/2-1/2"]
[TimeControl "90 minutes for 40 moves + 30 minutes for the rest of the game + 30 seconds per move from move one."]
[WhiteTitle "GM"]
[BlackTitle "GM"]
[WhiteFideId "1709437"]
[BlackFideId "1700030"]
[WhiteElo "2539"]
[BlackElo "2470"]

1. e4 {[%clk 01:30:53]} {[%emt 00:00:05]} c5 {[%clk 01:30:53]} {[%emt
00:00:08]} 2. Nf3 {[%clk 01:31:15]} {[%emt 00:00:08]} d6 {[%clk 01:31:07]}
{[%emt 00:00:16]} 3. d4 {[%clk 01:28:44]} {[%emt 00:03:01]} cxd4 {[%clk
01:31:30]} {[%emt 00:00:07]} 4. Nxd4 {[%clk 01:29:06]} {[%emt 00:00:07]} Nf6
{[%clk 01:31:51]} {[%emt 00:00:09]} 5. Nc3 {[%clk 01:29:30]} {[%emt 00:00:07]}
Nc6 {[%clk 01:31:33]} {[%emt 00:00:48]} 6. Bg5 {[%clk 01:29:36]} {[%emt
00:00:23]} e6 {[%clk 01:31:18]} {[%emt 00:00:45]} 7. Qd2 {[%clk 01:29:39]}
{[%emt 00:00:27]} a6 {[%clk 01:31:32]} {[%emt 00:00:17]} 8. O-O-O {[%clk
01:29:36]} {[%emt 00:00:33]} Bd7 {[%clk 01:31:54]} {[%emt 00:00:08]} 9. f3
{[%clk 01:28:36]} {[%emt 00:01:30]} Nxd4 {[%clk 01:23:28]} {[%emt 00:08:56]} 10.
Qxd4 {[%clk 01:28:52]} {[%emt 00:00:14]} b5 {[%clk 01:23:38]} {[%emt 00:00:20]}
11. Kb1 {[%clk 01:27:08]} {[%emt 00:02:14]} h6 {[%clk 01:22:45]} {[%emt
00:01:23]} 12. Be3 {[%clk 01:26:40]} {[%emt 00:00:58]} Bc6 {[%clk 01:20:28]}
{[%emt 00:02:46]} 13. Qd2 {[%clk 01:22:38]} {[%emt 00:04:33]} Be7 {[%clk
01:11:21]} {[%emt 00:09:36]} 14. a3 {[%clk 01:09:23]} {[%emt 00:13:46]} Qc7
{[%clk 01:08:25]} {[%emt 00:03:25]} 15. Qe1 {[%clk 01:00:50]} {[%emt 00:09:03]}
d5 {[%clk 00:58:43]} {[%emt 00:10:13]} 16. exd5 {[%clk 00:59:34]} {[%emt
00:01:46]} Nxd5 {[%clk 00:58:59]} {[%emt 00:00:12]} 17. Nxd5 {[%clk 00:54:01]}
{[%emt 00:06:04]} Bxd5 {[%clk 00:59:22]} {[%emt 00:00:06]} 18. Bd4 {[%clk
00:52:06]} {[%emt 00:02:27]} O-O {[%clk 00:53:10]} {[%emt 00:06:41]} 19. Qg3
{[%clk 00:49:55]} {[%emt 00:02:42]} Qxg3 {[%clk 00:53:31]} {[%emt 00:00:09]} 20.
hxg3 {[%clk 00:50:20]} {[%emt 00:00:04]} Rfd8 {[%clk 00:45:43]} {[%emt
00:08:16]} 21. Bd3 {[%clk 00:49:42]} {[%emt 00:01:09]} Rd7 {[%clk 00:44:25]}
{[%emt 00:01:48]} 22. g4 {[%clk 00:46:34]} {[%emt 00:03:39]} Rad8 {[%clk
00:44:34]} {[%emt 00:00:22]} 23. Bc3 {[%clk 00:39:53]} {[%emt 00:07:11]} Bc6
{[%clk 00:34:38]} {[%emt 00:10:24]} 24. Rde1 {[%clk 00:34:32]} {[%emt
00:05:53]} Ra8 {[%clk 00:30:35]} {[%emt 00:04:32]} 25. Rh5 {[%clk 00:31:13]}
{[%emt 00:03:50]} Rd5 {[%clk 00:26:07]} {[%emt 00:04:57]} 26. Be5 {[%clk
00:13:47]} {[%emt 00:17:57]} f6 {[%clk 00:20:38]} {[%emt 00:05:59]} 27. Bc3
{[%clk 00:12:10]} {[%emt 00:02:07]} Rxh5 {[%clk 00:20:11]} {[%emt 00:00:57]} 28.
gxh5 {[%clk 00:12:26]} {[%emt 00:00:14]} Bd5 {[%clk 00:20:01]} {[%emt
00:00:40]} 29. b4 {[%clk 00:07:16]} {[%emt 00:05:40]} Bd6 {[%clk 00:16:25]}
{[%emt 00:04:04]} 30. Kb2 {[%clk 00:07:21]} {[%emt 00:00:25]} Kf7 {[%clk
00:15:51]} {[%emt 00:01:05]} 31. Ra1 {[%clk 00:04:46]} {[%emt 00:03:05]} Rc8
{[%clk 00:15:28]} {[%emt 00:00:52]} 32. Rd1 {[%clk 00:04:35]} {[%emt 00:00:42]}
Ke7 {[%clk 00:14:28]} {[%emt 00:01:30]} 33. Bd4 {[%clk 00:03:25]} {[%emt
00:01:40]} Rc7 {[%clk 00:12:02]} {[%emt 00:02:54]} 34. c3 {[%clk 00:03:27]}
{[%emt 00:00:29]} Bc4 {[%clk 00:08:55]} {[%emt 00:03:37]} 35. Bxc4 {[%clk
00:02:07]} {[%emt 00:01:51]} Rxc4 {[%clk 00:09:21]} {[%emt 00:00:04]} 36. Kb3
{[%clk 00:02:30]} {[%emt 00:00:07]} e5 {[%clk 00:08:57]} {[%emt 00:00:54]} 37.
Bf2 {[%clk 00:02:41]} {[%emt 00:00:19]} Ke6 {[%clk 00:08:54]} {[%emt 00:00:33]}
38. a4 {[%clk 00:02:53]} {[%emt 00:00:18]} e4 {[%clk 00:06:28]} {[%emt
00:02:55]} 39. axb5 {[%clk 00:02:55]} {[%emt 00:00:29]} axb5 {[%clk 00:06:55]}
{[%emt 00:00:02]} 40. Re1 {[%clk 00:00:48]} {[%emt 00:02:38]} Be5 {[%clk
00:04:37]} {[%emt 00:02:47]} 41. Rxe4 {[%clk 00:15:01]} {[%emt 00:16:17]} Rxc3+
{[%clk 00:32:22]} {[%emt 00:02:45]} 42. Kb2 {[%clk 00:15:29]} {[%emt 00:00:02]}
Rc4+ {[%clk 00:14:58]} {[%emt 00:17:53]} 43. Kb3 {[%clk 00:15:55]} {[%emt
00:00:05]} Rc3+ {[%clk 00:08:24]} {[%emt 00:07:04]} 44. Kb2 {[%clk 00:16:23]}
{[%emt 00:00:03]} Rc4+ {[%clk 00:07:25]} {[%emt 00:01:29]} 45. Kb3 {[%clk
00:16:49]} {[%emt 00:00:05]} Rc3+ {[%emt 00:01:37]} 1/2-1/2

[Event "Elitserien 2019/2020, round 7-9"]
[Site "Elite stadshotellet, Kungsgatan 6, Vaxjo, Sweden"]
[Date "2020.10.16"]
[Round "1.3"]
[White "Berg, Emanuel"]
[Black "Bator, Robert"]
[Result "1-0"]
[TimeControl "90 minutes for 40 moves + 30 minutes for the rest of the game + 30 seconds per move from move one."]
[WhiteTitle "GM"]
[BlackTitle "IM"]
[WhiteFideId "1704060"]
[BlackFideId "1700405"]
[WhiteElo "2544"]
[BlackElo "2365"]

1. e4 {[%clk 01:30:56]} {[%emt 00:00:03]} c5 {[%clk 01:30:47]} {[%emt
00:00:13]} 2. Nf3 {[%clk 01:31:19]} {[%emt 00:00:07]} Nc6 {[%clk 01:31:12]}
{[%emt 00:00:05]} 3. d4 {[%clk 01:31:38]} {[%emt 00:00:10]} cxd4 {[%clk
01:31:35]} {[%emt 00:00:08]} 4. Nxd4 {[%clk 01:32:01]} {[%emt 00:00:06]} e5
{[%clk 01:31:54]} {[%emt 00:00:11]} 5. Nb5 {[%clk 01:32:17]} {[%emt 00:00:14]}
d6 {[%clk 01:31:38]} {[%emt 00:00:46]} 6. c4 {[%clk 01:32:21]} {[%emt
00:00:25]} Be7 {[%clk 01:31:50]} {[%emt 00:00:18]} 7. N1c3 {[%clk 01:32:31]}
{[%emt 00:00:19]} a6 {[%clk 01:32:00]} {[%emt 00:00:21]} 8. Na3 {[%clk
01:32:54]} {[%emt 00:00:07]} h6 {[%clk 01:31:42]} {[%emt 00:00:49]} 9. Nc2
{[%clk 01:14:56]} {[%emt 00:18:27]} Nf6 {[%clk 01:31:05]} {[%emt 00:01:07]} 10.
Be2 {[%clk 01:10:33]} {[%emt 00:04:53]} O-O {[%clk 01:29:34]} {[%emt 00:02:01]}
11. Be3 {[%clk 01:05:38]} {[%emt 00:05:25]} Be6 {[%clk 01:23:08]} {[%emt
00:06:57]} 12. O-O {[%clk 00:53:53]} {[%emt 00:12:14]} Ne8 {[%clk 01:20:24]}
{[%emt 00:03:14]} 13. Nd5 {[%clk 00:47:12]} {[%emt 00:07:10]} Bg5 {[%clk
01:14:41]} {[%emt 00:06:13]} 14. Bb6 {[%clk 00:46:44]} {[%emt 00:00:58]} Qd7
{[%clk 01:14:52]} {[%emt 00:00:20]} 15. a4 {[%clk 00:28:18]} {[%emt 00:18:55]}
Bd8 {[%clk 00:56:33]} {[%emt 00:18:50]} 16. Be3 {[%clk 00:26:50]} {[%emt
00:01:58]} Nf6 {[%clk 00:54:19]} {[%emt 00:02:45]} 17. f3 {[%clk 00:25:13]}
{[%emt 00:02:06]} Nh7 {[%clk 00:30:44]} {[%emt 00:24:05]} 18. Qd2 {[%clk
00:21:20]} {[%emt 00:04:23]} Rb8 {[%clk 00:28:31]} {[%emt 00:02:44]} 19. Rfd1
{[%clk 00:18:29]} {[%emt 00:03:21]} Bg5 {[%clk 00:26:49]} {[%emt 00:02:12]} 20.
a5 {[%clk 00:17:16]} {[%emt 00:01:42]} Bxe3+ {[%clk 00:25:53]} {[%emt
00:01:26]} 21. Qxe3 {[%clk 00:17:06]} {[%emt 00:00:40]} Ne7 {[%clk 00:22:58]}
{[%emt 00:03:25]} 22. Nb6 {[%clk 00:09:39]} {[%emt 00:07:57]} Qc7 {[%clk
00:22:49]} {[%emt 00:00:39]} 23. Rd2 {[%clk 00:09:49]} {[%emt 00:00:20]} Rbd8
{[%clk 00:18:54]} {[%emt 00:04:25]} 24. Rad1 {[%clk 00:08:58]} {[%emt
00:01:20]} f5 {[%clk 00:11:55]} {[%emt 00:07:29]} 25. b4 {[%clk 00:07:27]}
{[%emt 00:02:02]} Nf6 {[%clk 00:11:35]} {[%emt 00:00:50]} 26. exf5 {[%clk
00:05:41]} {[%emt 00:02:17]} Nxf5 {[%clk 00:10:11]} {[%emt 00:01:53]} 27. Qd3
{[%clk 00:04:34]} {[%emt 00:01:35]} Kh8 {[%clk 00:08:29]} {[%emt 00:02:14]} 28.
Bf1 {[%clk 00:04:24]} {[%emt 00:00:40]} Qf7 {[%clk 00:06:21]} {[%emt 00:02:38]}
29. Qe2 {[%clk 00:04:21]} {[%emt 00:00:33]} Qc7 {[%clk 00:06:12]} {[%emt
00:00:40]} 30. Qe1 {[%clk 00:04:09]} {[%emt 00:00:41]} Rfe8 {[%clk 00:05:46]}
{[%emt 00:00:57]} 31. Bd3 {[%clk 00:04:11]} {[%emt 00:00:28]} Ne7 {[%clk
00:04:11]} {[%emt 00:02:05]} 32. Ne3 {[%clk 00:02:48]} {[%emt 00:01:53]} Bg8
{[%clk 00:03:45]} {[%emt 00:00:56]} 33. Bb1 {[%clk 00:02:48]} {[%emt 00:00:30]}
Nc6 {[%clk 00:03:36]} {[%emt 00:00:39]} 34. Nf5 {[%clk 00:01:53]} {[%emt
00:01:26]} d5 {[%clk 00:01:57]} {[%emt 00:02:09]} 35. cxd5 {[%clk 00:00:58]}
{[%emt 00:01:25]} Nxb4 {[%clk 00:02:14]} {[%emt 00:00:11]} 36. Rc1 {[%clk
00:00:58]} {[%emt 00:00:30]} Qf7 {[%clk 00:02:08]} {[%emt 00:00:36]} 37. d6
{[%clk 00:01:13]} {[%emt 00:00:16]} Nc6 {[%clk 00:01:58]} {[%emt 00:00:40]} 38.
d7 {[%clk 00:01:18]} {[%emt 00:00:24]} Rf8 {[%clk 00:01:24]} {[%emt 00:01:04]}
39. Nd6 {[%clk 00:01:30]} {[%emt 00:00:18]} Qh5 {[%clk 00:00:59]} {[%emt
00:00:55]} 40. Nxb7 {[%clk 00:01:30]} {[%emt 00:00:29]} Nd4 {[%clk 00:00:57]}
{[%emt 00:00:32]} 41. Nxd8 {[%clk 00:00:32]} {[%emt 00:01:29]} Rxd8 {[%clk
00:28:10]} {[%emt 00:03:17]} 42. Rxd4 {[%clk 00:26:59]} {[%emt 00:04:03]} exd4
{[%clk 00:28:22]} {[%emt 00:00:18]} 43. Rc8 {[%clk 00:27:17]} {[%emt 00:00:11]}
d3 {[%clk 00:23:38]} {[%emt 00:05:14]} 44. Rxd8 {[%clk 00:26:42]} {[%emt
00:01:04]} Qc5+ {[%clk 00:23:53]} {[%emt 00:00:16]} 45. Kh1 {[%clk 00:25:27]}
{[%emt 00:01:44]} 1-0

[Event "Elitserien 2019/2020, round 7-9"]
[Site "Elite stadshotellet, Kungsgatan 6, Vaxjo, Sweden"]
[Date "2020.10.16"]
[Round "1.4"]
[White "Barkhagen, Jonas"]
[Black "Cramling, Dan"]
[Result "1/2-1/2"]
[TimeControl "90 minutes for 40 moves + 30 minutes for the rest of the game + 30 seconds per move from move one."]
[WhiteTitle "IM"]
[BlackTitle "IM"]
[WhiteFideId "1700855"]
[BlackFideId "1700162"]
[WhiteElo "2430"]
[BlackElo "2296"]

1. d4 {[%clk 01:30:48]} {[%emt 00:00:04]} Nf6 {[%clk 01:30:48]} {[%emt
00:00:19]} 2. c4 {[%clk 01:31:11]} {[%emt 00:00:06]} c5 {[%clk 01:31:06]}
{[%emt 00:00:14]} 3. d5 {[%clk 01:31:35]} {[%emt 00:00:06]} b5 {[%clk
01:31:25]} {[%emt 00:00:11]} 4. cxb5 {[%clk 01:31:58]} {[%emt 00:00:07]} a6
{[%clk 01:31:46]} {[%emt 00:00:10]} 5. bxa6 {[%clk 01:32:23]} {[%emt 00:00:05]}
g6 {[%clk 01:32:03]} {[%emt 00:00:13]} 6. Nc3 {[%clk 01:32:41]} {[%emt
00:00:10]} Bg7 {[%clk 01:32:21]} {[%emt 00:00:13]} 7. e4 {[%clk 01:24:29]}
{[%emt 00:08:42]} O-O {[%clk 01:31:42]} {[%emt 00:01:09]} 8. Nf3 {[%clk
01:21:44]} {[%emt 00:03:14]} Qa5 {[%clk 01:31:29]} {[%emt 00:00:44]} 9. Nd2
{[%clk 01:09:36]} {[%emt 00:12:37]} Bxa6 {[%clk 01:30:11]} {[%emt 00:01:48]} 10.
Be2 {[%clk 01:09:47]} {[%emt 00:00:20]} e6 {[%clk 01:28:32]} {[%emt 00:02:09]}
11. O-O {[%clk 01:07:28]} {[%emt 00:02:47]} exd5 {[%clk 01:26:53]} {[%emt
00:02:11]} 12. e5 {[%clk 01:07:00]} {[%emt 00:00:57]} Bxe2 {[%clk 01:26:05]}
{[%emt 00:01:20]} 13. Nxe2 {[%clk 01:00:23]} {[%emt 00:07:06]} Ne4 {[%clk
01:04:46]} {[%emt 00:21:49]} 14. Nb3 {[%clk 00:52:37]} {[%emt 00:08:15]} Qa6
{[%clk 01:04:26]} {[%emt 00:00:51]} 15. Nf4 {[%clk 00:31:52]} {[%emt 00:21:16]}
c4 {[%clk 00:58:00]} {[%emt 00:06:56]} 16. Nd4 {[%clk 00:28:37]} {[%emt
00:03:44]} Bxe5 {[%clk 00:41:03]} {[%emt 00:17:28]} 17. Nxd5 {[%clk 00:28:46]}
{[%emt 00:00:21]} Qb7 {[%clk 00:35:21]} {[%emt 00:06:12]} 18. Nf3 {[%clk
00:24:01]} {[%emt 00:05:15]} Bg7 {[%clk 00:35:24]} {[%emt 00:00:27]} 19. Re1
{[%clk 00:21:48]} {[%emt 00:02:42]} f5 {[%clk 00:33:25]} {[%emt 00:02:30]} 20.
Ng5 {[%clk 00:13:38]} {[%emt 00:08:40]} Ra5 {[%clk 00:32:25]} {[%emt 00:01:29]}
21. Ne7+ {[%clk 00:11:49]} {[%emt 00:02:19]} Kh8 {[%clk 00:32:28]} {[%emt
00:00:28]} 22. Qf3 {[%clk 00:04:48]} {[%emt 00:07:30]} Qb4 {[%clk 00:24:40]}
{[%emt 00:08:18]} 23. Nxg6+ {[%clk 00:05:06]} {[%emt 00:00:12]} Kg8 {[%clk
00:25:05]} {[%emt 00:00:06]} 24. Bd2 {[%clk 00:05:21]} {[%emt 00:00:15]} Qxd2
{[%clk 00:22:08]} {[%emt 00:03:27]} 25. Ne7+ {[%clk 00:05:16]} {[%emt
00:00:34]} Kh8 {[%clk 00:22:28]} {[%emt 00:00:10]} 26. Ng6+ {[%clk 00:05:17]}
{[%emt 00:00:29]} Kg8 {[%clk 00:22:49]} {[%emt 00:00:10]} 27. Ne7+ {[%clk
00:05:38]} {[%emt 00:00:09]} Kh8 {[%clk 00:23:07]} {[%emt 00:00:12]} 28. Ng6+
{[%clk 00:05:55]} {[%emt 00:00:12]} Kg8 {[%clk 00:22:45]} {[%emt 00:00:53]} 29.
Ne7+ {[%emt 00:00:11]} 1/2-1/2

[Event "Elitserien 2019/2020, round 7-9"]
[Site "Elite stadshotellet, Kungsgatan 6, Vaxjo, Sweden"]
[Date "2020.10.16"]
[Round "1.5"]
[White "Bellon Lopez, Juan Manuel"]
[Black "Kenneskog, Theodor"]
[Result "1/2-1/2"]
[TimeControl "90 minutes for 40 moves + 30 minutes for the rest of the game + 30 seconds per move from move one."]
[WhiteTitle "GM"]
[BlackTitle "FM"]
[WhiteFideId "2200031"]
[BlackFideId "1715011"]
[WhiteElo "2348"]
[BlackElo "2302"]

1. d4 {[%clk 01:30:55]} {[%emt 00:00:05]} Nf6 {[%clk 01:30:57]} {[%emt
00:00:04]} 2. Bg5 {[%clk 01:30:53]} {[%emt 00:00:32]} Ne4 {[%clk 01:31:21]}
{[%emt 00:00:05]} 3. Bh4 {[%clk 01:30:48]} {[%emt 00:00:35]} c5 {[%clk
01:31:42]} {[%emt 00:00:10]} 4. f3 {[%clk 01:31:05]} {[%emt 00:00:11]} g5
{[%clk 01:32:07]} {[%emt 00:00:06]} 5. fxe4 {[%clk 01:31:26]} {[%emt 00:00:09]}
gxh4 {[%clk 01:32:34]} {[%emt 00:00:03]} 6. e3 {[%clk 01:31:36]} {[%emt
00:00:19]} Bh6 {[%clk 01:32:59]} {[%emt 00:00:06]} 7. Nd2 {[%clk 01:31:32]}
{[%emt 00:00:34]} Bxe3 {[%clk 01:14:09]} {[%emt 00:19:20]} 8. d5 {[%clk
01:31:43]} {[%emt 00:00:20]} d6 {[%clk 01:03:19]} {[%emt 00:11:19]} 9. Nc4
{[%clk 01:28:33]} {[%emt 00:03:39]} Bh6 {[%clk 01:01:37]} {[%emt 00:02:13]} 10.
Qh5 {[%clk 01:28:19]} {[%emt 00:00:44]} Bg7 {[%clk 01:01:28]} {[%emt 00:00:38]}
11. Nf3 {[%clk 01:21:45]} {[%emt 00:07:04]} b5 {[%clk 00:57:26]} {[%emt
00:04:33]} 12. Ng5 {[%clk 01:17:37]} {[%emt 00:04:37]} Rf8 {[%clk 00:57:04]}
{[%emt 00:00:52]} 13. Nd2 {[%clk 00:42:51]} {[%emt 00:35:17]} Qa5 {[%clk
00:45:09]} {[%emt 00:12:26]} 14. c3 {[%clk 00:41:22]} {[%emt 00:01:58]} h6
{[%clk 00:16:22]} {[%emt 00:29:17]} 15. Ne6 {[%clk 00:35:35]} {[%emt 00:06:17]}
Bxe6 {[%clk 00:16:50]} {[%emt 00:00:02]} 16. dxe6 {[%clk 00:35:59]} {[%emt
00:00:06]} Nc6 {[%clk 00:17:06]} {[%emt 00:00:14]} 17. Qd5 {[%clk 00:25:02]}
{[%emt 00:11:27]} Rc8 {[%clk 00:17:34]} {[%emt 00:00:02]} 18. Be2 {[%clk
00:23:49]} {[%emt 00:01:42]} Kd8 {[%clk 00:08:07]} {[%emt 00:09:57]} 19. exf7
{[%clk 00:18:24]} {[%emt 00:05:55]} Kc7 {[%clk 00:07:07]} {[%emt 00:01:30]} 20.
a4 {[%clk 00:14:38]} {[%emt 00:04:16]} a6 {[%clk 00:04:17]} {[%emt 00:03:20]}
21. O-O {[%clk 00:09:56]} {[%emt 00:05:11]} Qb6 {[%clk 00:04:46]} {[%emt
00:00:02]} 22. axb5 {[%clk 00:08:45]} {[%emt 00:01:42]} axb5 {[%clk 00:05:14]}
{[%emt 00:00:02]} 23. Bg4 {[%clk 00:07:49]} {[%emt 00:01:25]} Rcd8 {[%clk
00:05:39]} {[%emt 00:00:06]} 24. Kh1 {[%clk 00:06:03]} {[%emt 00:02:16]} Bf6
{[%clk 00:05:25]} {[%emt 00:00:44]} 25. Qe6 {[%clk 00:05:28]} {[%emt 00:01:05]}
Ne5 {[%clk 00:04:34]} {[%emt 00:01:21]} 26. Bh5 {[%clk 00:03:26]} {[%emt
00:02:32]} d5 {[%clk 00:02:05]} {[%emt 00:02:59]} 27. Qxb6+ {[%clk 00:03:18]}
{[%emt 00:00:39]} Kxb6 {[%clk 00:02:34]} {[%emt 00:00:01]} 28. exd5 {[%clk
00:03:35]} {[%emt 00:00:13]} Nxf7 {[%clk 00:02:29]} {[%emt 00:00:34]} 29. Ne4
{[%clk 00:02:00]} {[%emt 00:02:05]} Ng5 {[%clk 00:02:31]} {[%emt 00:00:28]} 30.
Nxg5 {[%clk 00:01:12]} {[%emt 00:01:18]} hxg5 {[%clk 00:02:47]} {[%emt
00:00:14]} 31. Rf5 {[%clk 00:01:10]} {[%emt 00:00:32]} Ra8 {[%clk 00:02:27]}
{[%emt 00:00:50]} 32. Raf1 {[%clk 00:01:19]} {[%emt 00:00:20]} Rfd8 {[%clk
00:02:22]} {[%emt 00:00:35]} 33. Bf7 {[%clk 00:00:50]} {[%emt 00:00:59]} Rd6
{[%clk 00:01:37]} {[%emt 00:01:15]} 34. R5f2 {[%clk 00:00:35]} {[%emt
00:00:46]} Ra2 {[%clk 00:01:48]} {[%emt 00:00:19]} 35. g3 {[%clk 00:00:39]}
{[%emt 00:00:26]} b4 {[%clk 00:01:19]} {[%emt 00:00:59]} 36. gxh4 {[%clk
00:00:49]} {[%emt 00:00:21]} gxh4 {[%clk 00:01:47]} {[%emt 00:00:01]} 37. cxb4
{[%clk 00:01:03]} {[%emt 00:00:16]} cxb4 {[%clk 00:02:15]} {[%emt 00:00:02]} 38.
b3 {[%clk 00:01:04]} {[%emt 00:00:29]} Rxf2 {[%clk 00:01:49]} {[%emt 00:00:56]}
39. Rxf2 {[%clk 00:01:18]} {[%emt 00:00:17]} Kb5 {[%clk 00:00:45]} {[%emt
00:01:34]} 40. Rc2 {[%clk 00:00:39]} {[%emt 00:01:08]} Bc3 {[%clk 00:00:37]}
{[%emt 00:00:38]} 41. Re2 {[%clk 00:00:34]} {[%emt 00:00:34]} Rf6 {[%clk
00:25:24]} {[%emt 00:05:44]} 42. Be6 {[%clk 00:24:44]} {[%emt 00:06:19]} Rf4
{[%clk 00:24:26]} {[%emt 00:01:29]} 43. Kg2 {[%clk 00:24:13]} {[%emt 00:01:00]}
Kc5 {[%clk 00:24:36]} {[%emt 00:00:20]} 44. h3 {[%clk 00:19:26]} {[%emt
00:05:17]} Kd6 {[%clk 00:22:03]} {[%emt 00:03:03]} 45. Bg8 {[%clk 00:15:39]}
{[%emt 00:04:16]} Bd4 {[%clk 00:20:19]} {[%emt 00:02:14]} 46. Rd2 {[%clk
00:12:40]} {[%emt 00:03:29]} Ke5 {[%clk 00:18:21]} {[%emt 00:02:28]} 47. Re2+
{[%clk 00:12:48]} {[%emt 00:00:23]} Kd6 {[%clk 00:18:29]} {[%emt 00:00:22]} 48.
Rd2 {[%clk 00:10:27]} {[%emt 00:02:50]} Ke5 {[%clk 00:18:37]} {[%emt 00:00:23]}
49. Re2+ {[%clk 00:10:52]} {[%emt 00:00:06]} Kd6 {[%clk 00:18:48]} {[%emt
00:00:18]} 50. Rd2 {[%clk 00:11:13]} {[%emt 00:00:09]} Ke5 {[%clk 00:17:31]}
{[%emt 00:01:47]} 51. Re2+ {[%clk 00:11:19]} {[%emt 00:00:24]} Kd6 {[%clk
00:17:31]} {[%emt 00:00:30]} 52. Rd2 {[%clk 00:11:39]} {[%emt 00:00:10]} Ke5
{[%clk 00:17:43]} {[%emt 00:00:17]} 53. Re2+ {[%clk 00:11:57]} {[%emt
00:00:12]} Kd6 {[%clk 00:18:07]} {[%emt 00:00:07]} 54. Rd2 {[%clk 00:12:23]}
{[%emt 00:00:04]} Ke5 {[%clk 00:15:08]} {[%emt 00:03:28]} 55. Re2+ {[%clk
00:12:45]} {[%emt 00:00:09]} Kd6 {[%emt 00:00:07]} 1/2-1/2